[Event "*** Titled Tuesday Blitz"]
[Site "Chess.com"]
[Date "2020.04.28"]
[Round "1"]
[White "GM_LOADING"]
[Black "Cocaino74"]
[Result "0-1"]
[WhiteElo "2604"]
[BlackElo "2326"]
[TimeControl "180+1"]
[EndTime "10:09:28 PDT"]
[Termination "Cocaino74 won by resignation"]

1. e4 {[%clk 0:03:00.4]} 1... c5 {[%clk 0:02:57.5]} 2. Nf3 {[%clk 0:03:00.3]}
2... Nc6 {[%clk 0:02:57.6]} 3. d4 {[%clk 0:03:00.8]} 3... cxd4 {[%clk
0:02:58.1]} 4. Nxd4 {[%clk 0:03:01.7]} 4... g6 {[%clk 0:02:58.5]} 5. c4 {[%clk
0:03:01.4]} 5... Nf6 {[%clk 0:02:57.7]} 6. Nc3 {[%clk 0:03:00.3]} 6... d6 {[%clk
0:02:58.3]} 7. Be2 {[%clk 0:02:59.8]} 7... Nxd4 {[%clk 0:02:58.5]} 8. Qxd4
{[%clk 0:03:00.7]} 8... Bg7 {[%clk 0:02:59.3]} 9. Be3 {[%clk 0:02:56.6]} 9...
O-O {[%clk 0:02:58.9]} 10. Qd2 {[%clk 0:02:56.9]} 10... Be6 {[%clk 0:02:55.6]}
11. Rc1 {[%clk 0:02:53]} 11... a5 {[%clk 0:02:54.3]} 12. f3 {[%clk 0:02:50]}
12... a4 {[%clk 0:02:52.9]} 13. O-O {[%clk 0:02:49.8]} 13... Qa5 {[%clk
0:02:45]} 14. Nb5 {[%clk 0:02:41.8]} 14... Qxd2 {[%clk 0:02:26.9]} 15. Bxd2
{[%clk 0:02:42.7]} 15... Rfc8 {[%clk 0:02:27.8]} 16. Rc2 {[%clk 0:02:33.3]}
16... Nd7 {[%clk 0:02:10.6]} 17. Rfc1 {[%clk 0:02:26]} 17... f5 {[%clk 0:01:51]}
18. Bc3 {[%clk 0:01:44.1]} 18... fxe4 {[%clk 0:01:45.3]} 19. Bxg7 {[%clk
0:01:34.2]} 19... Kxg7 {[%clk 0:01:45.6]} 20. fxe4 {[%clk 0:01:33.6]} 20... Ne5
{[%clk 0:01:41.6]} 21. Nd4 {[%clk 0:01:23.7]} 21... Bf7 {[%clk 0:01:41]} 22. c5
{[%clk 0:01:02.2]} 22... Bxa2 {[%clk 0:00:36.7]} 23. cxd6 {[%clk 0:01:01.8]}
23... Rxc2 {[%clk 0:00:36.8]} 24. Rxc2 {[%clk 0:01:00.7]} 24... exd6 {[%clk
0:00:37.3]} 25. Rc7+ {[%clk 0:01:01.1]} 25... Kh6 {[%clk 0:00:25.9]} 26. Rxb7
{[%clk 0:00:55.1]} 26... a3 {[%clk 0:00:25.3]} 27. bxa3 {[%clk 0:00:43]} 27...
Rxa3 {[%clk 0:00:25.9]} 28. Nb5 {[%clk 0:00:37.5]} 28... Re3 {[%clk 0:00:25.3]}
29. Kf2 {[%clk 0:00:34.6]} 29... Rxe4 {[%clk 0:00:25.3]} 30. Nxd6 {[%clk
0:00:35.1]} 30... Rf4+ {[%clk 0:00:24.1]} 31. Ke3 {[%clk 0:00:27.1]} 31... Rf8
{[%clk 0:00:23.5]} 32. Re7 {[%clk 0:00:23.4]} 32... Nc6 {[%clk 0:00:18.8]} 33.
Re4 {[%clk 0:00:22]} 33... Bd5 {[%clk 0:00:17.6]} 34. Rh4+ {[%clk 0:00:21.5]}
34... Kg7 {[%clk 0:00:17.4]} 35. g3 {[%clk 0:00:16.9]} 35... Rf6 {[%clk
0:00:15.6]} 36. Ne8+ {[%clk 0:00:15.4]} 36... Kf7 {[%clk 0:00:16.1]} 37. Nxf6
{[%clk 0:00:15.7]} 37... Kxf6 {[%clk 0:00:16.8]} 38. Rxh7 {[%clk 0:00:16.1]}
38... Ne7 {[%clk 0:00:17.1]} 39. Bd3 {[%clk 0:00:12.7]} 39... Be6 {[%clk
0:00:16.4]} 40. Rh4 {[%clk 0:00:12.4]} 40... Kg5 {[%clk 0:00:14.8]} 41. Rb4
{[%clk 0:00:12.1]} 41... Nd5+ {[%clk 0:00:14.1]} 42. Kd4 {[%clk 0:00:12.4]}
42... Nxb4 {[%clk 0:00:14.9]} 43. Be2 {[%clk 0:00:11.9]} 43... Bf5 {[%clk
0:00:07.9]} 44. h4+ {[%clk 0:00:10.5]} 44... Kf6 {[%clk 0:00:07.7]} 45. g4
{[%clk 0:00:10.7]} 45... Bb1 {[%clk 0:00:04]} 46. Kc5 {[%clk 0:00:10.2]} 46...
Na2 {[%clk 0:00:03.4]} 47. Kd4 {[%clk 0:00:07.6]} 47... Nc1 {[%clk 0:00:02.3]}
48. Bf3 {[%clk 0:00:06]} 48... Nb3+ {[%clk 0:00:02.3]} 49. Kc3 {[%clk
0:00:05.5]} 49... Nc5 {[%clk 0:00:02.7]} 50. Kd4 {[%clk 0:00:05.5]} 50... Ne6+
{[%clk 0:00:02.6]} 51. Ke3 {[%clk 0:00:06]} 51... Bc2 {[%clk 0:00:02.7]} 52. Bd5
{[%clk 0:00:05.4]} 52... Nc7 {[%clk 0:00:02.2]} 53. g5+ {[%clk 0:00:04.6]} 53...
Kg7 {[%clk 0:00:02.1]} 54. Bf3 {[%clk 0:00:04.3]} 54... Bf5 {[%clk 0:00:02.6]}
55. Kf4 {[%clk 0:00:04.5]} 55... Ne6+ {[%clk 0:00:03.1]} 56. Ke5 {[%clk
0:00:05]} 56... Bh3 {[%clk 0:00:02.8]} 57. Bd5 {[%clk 0:00:04.6]} 57... Nf8
{[%clk 0:00:02.6]} 58. Bc6 {[%clk 0:00:04.5]} 58... Bg4 {[%clk 0:00:02.7]} 59.
Kd6 {[%clk 0:00:04.6]} 59... Bh5 {[%clk 0:00:03.3]} 60. Ke7 {[%clk 0:00:04.7]}
60... Nh7 {[%clk 0:00:03]} 61. Be8 {[%clk 0:00:04]} 61... Bg4 {[%clk 0:00:03.4]}
62. Bf7 {[%clk 0:00:03.8]} 62... Nf8 {[%clk 0:00:03.4]} 63. Be8 {[%clk
0:00:02.9]} 63... Bh5 {[%clk 0:00:02.1]} 64. Bc6 {[%clk 0:00:02.8]} 64... Bg4
{[%clk 0:00:02.3]} 65. Bd5 {[%clk 0:00:03.3]} 65... Bf5 {[%clk 0:00:03]} 66. Bc6
{[%clk 0:00:03.4]} 66... Ne6 {[%clk 0:00:03.2]} 67. Bd7 {[%clk 0:00:02.8]} 67...
Nd4 {[%clk 0:00:03.1]} 68. Bxf5 {[%clk 0:00:02.5]} 68... Nxf5+ {[%clk 0:00:04]}
69. Ke6 {[%clk 0:00:02.9]} 69... Nxh4 {[%clk 0:00:04.7]} 70. Ke5 {[%clk
0:00:03.8]} 70... Nf5 {[%clk 0:00:05.2]} 71. Kf4 {[%clk 0:00:03.8]} 71... Kf7
{[%clk 0:00:06.1]} 72. Ke5 {[%clk 0:00:04.7]} 72... Ng7 {[%clk 0:00:05.8]} 73.
Kd5 {[%clk 0:00:05.6]} 73... Ke7 {[%clk 0:00:06.1]} 74. Ke5 {[%clk 0:00:06.5]}
74... Ne6 {[%clk 0:00:05.7]} 75. Ke4 {[%clk 0:00:06.7]} 75... Nxg5+ {[%clk
0:00:06.3]} 76. Kf4 {[%clk 0:00:02.7]} 76... Nf7 {[%clk 0:00:06.8]} 0-1

[Event "*** Titled Tuesday Blitz"]
[Site "Chess.com"]
[Date "2020.04.28"]
[Round "1"]
[White "Training_Day"]
[Black "grzechu96"]
[Result "0-1"]
[WhiteElo "2300"]
[BlackElo "2618"]
[TimeControl "180+1"]
[EndTime "10:09:35 PDT"]
[Termination "grzechu96 won by resignation"]

1. e4 {[%clk 0:02:53.3]} 1... c5 {[%clk 0:02:55.5]} 2. c3 {[%clk 0:02:52.9]}
2... Nf6 {[%clk 0:02:52.6]} 3. e5 {[%clk 0:02:52.4]} 3... Nd5 {[%clk 0:02:53.2]}
4. Nf3 {[%clk 0:02:52.3]} 4... e6 {[%clk 0:02:52.3]} 5. d4 {[%clk 0:02:51.1]}
5... cxd4 {[%clk 0:02:52.8]} 6. cxd4 {[%clk 0:02:51.8]} 6... d6 {[%clk
0:02:53.5]} 7. Bc4 {[%clk 0:02:50]} 7... Nc6 {[%clk 0:02:53.2]} 8. O-O {[%clk
0:02:47.9]} 8... Be7 {[%clk 0:02:52.9]} 9. exd6 {[%clk 0:02:48]} 9... Qxd6
{[%clk 0:02:52.4]} 10. Nc3 {[%clk 0:02:48.1]} 10... O-O {[%clk 0:02:48.6]} 11.
Re1 {[%clk 0:02:47.7]} 11... a6 {[%clk 0:02:27.6]} 12. Bb3 {[%clk 0:02:44]}
12... b5 {[%clk 0:02:19.3]} 13. Nxd5 {[%clk 0:02:20.5]} 13... exd5 {[%clk
0:02:19.2]} 14. Ne5 {[%clk 0:02:11.5]} 14... Be6 {[%clk 0:02:00.4]} 15. Bf4
{[%clk 0:02:07]} 15... Nxe5 {[%clk 0:01:50.9]} 16. Bxe5 {[%clk 0:02:05.5]} 16...
Qd7 {[%clk 0:01:48.7]} 17. Re3 {[%clk 0:01:52]} 17... Rac8 {[%clk 0:01:37.3]}
18. h3 {[%clk 0:01:41]} 18... Bf5 {[%clk 0:01:34.3]} 19. a4 {[%clk 0:01:25.4]}
19... b4 {[%clk 0:01:26.8]} 20. a5 {[%clk 0:01:19.2]} 20... Rfd8 {[%clk
0:01:00.5]} 21. Qe2 {[%clk 0:01:08.8]} 21... Bf8 {[%clk 0:00:58.5]} 22. Qxa6
{[%clk 0:01:06.2]} 22... Ra8 {[%clk 0:00:51.2]} 23. Qe2 {[%clk 0:00:59.5]} 23...
f6 {[%clk 0:00:47.3]} 24. Bg3 {[%clk 0:00:56.2]} 24... Ra7 {[%clk 0:00:42.3]}
25. Qf3 {[%clk 0:00:43]} 25... Bg6 {[%clk 0:00:41.8]} 26. a6 {[%clk 0:00:36.2]}
26... Bf7 {[%clk 0:00:41.4]} 27. Qe2 {[%clk 0:00:24]} 27... Qc6 {[%clk
0:00:31.5]} 28. Ra5 {[%clk 0:00:21.5]} 28... Rda8 {[%clk 0:00:29.3]} 29. Qf3
{[%clk 0:00:14.5]} 29... Rd8 {[%clk 0:00:28.4]} 30. Kh2 {[%clk 0:00:13]} 30...
Rxa6 {[%clk 0:00:27.7]} 31. Rxa6 {[%clk 0:00:09.1]} 31... Qxa6 {[%clk
0:00:28.6]} 32. Qf5 {[%clk 0:00:08.6]} 32... Qa7 {[%clk 0:00:21.6]} 33. Qf4
{[%clk 0:00:06.6]} 33... Rc8 {[%clk 0:00:13.6]} 34. h4 {[%clk 0:00:04.5]} 34...
h5 {[%clk 0:00:12.1]} 35. Qf3 {[%clk 0:00:03.8]} 35... Qb7 {[%clk 0:00:11.5]}
36. Re2 {[%clk 0:00:02.7]} 36... Rd8 {[%clk 0:00:11.1]} 37. Qf4 {[%clk
0:00:02.6]} 37... Qb6 {[%clk 0:00:11.2]} 38. Qc7 {[%clk 0:00:02.2]} 38... Qxc7
{[%clk 0:00:11.4]} 39. Bxc7 {[%clk 0:00:02.9]} 39... Rc8 {[%clk 0:00:12.1]} 40.
Bf4 {[%clk 0:00:03.1]} 40... g6 {[%clk 0:00:08.5]} 41. g3 {[%clk 0:00:02.9]}
41... Kg7 {[%clk 0:00:08.3]} 42. Rc2 {[%clk 0:00:02.5]} 42... Rxc2 {[%clk
0:00:08.4]} 43. Bxc2 {[%clk 0:00:03.4]} 43... Be6 {[%clk 0:00:08.3]} 44. Bb3
{[%clk 0:00:04.3]} 44... Kf7 {[%clk 0:00:08.5]} 45. Be3 {[%clk 0:00:04.6]} 45...
Ke7 {[%clk 0:00:08.6]} 46. Kg2 {[%clk 0:00:05.5]} 46... Kd7 {[%clk 0:00:09.1]}
47. Kf1 {[%clk 0:00:06.1]} 47... Kc6 {[%clk 0:00:09.6]} 48. Ke2 {[%clk
0:00:06.6]} 48... Bf5 {[%clk 0:00:10.1]} 49. f3 {[%clk 0:00:06.1]} 49... Bd6
{[%clk 0:00:09.5]} 50. Bf4 {[%clk 0:00:06.1]} 50... Bxf4 {[%clk 0:00:09.7]} 51.
gxf4 {[%clk 0:00:07]} 51... Kd6 {[%clk 0:00:08.9]} 52. Ke3 {[%clk 0:00:07.4]}
52... Bb1 {[%clk 0:00:08.8]} 53. Ke2 {[%clk 0:00:07.4]} 53... Ke6 {[%clk
0:00:08.7]} 54. Ke3 {[%clk 0:00:07.6]} 54... Bf5 {[%clk 0:00:08.3]} 55. Ke2
{[%clk 0:00:06]} 55... Bb1 {[%clk 0:00:06.3]} 56. Ke3 {[%clk 0:00:04.8]} 56...
Kd6 {[%clk 0:00:06]} 57. Ke2 {[%clk 0:00:05.2]} 57... Bf5 {[%clk 0:00:06.7]} 58.
Ke3 {[%clk 0:00:05]} 58... Bd7 {[%clk 0:00:07.3]} 59. Ke2 {[%clk 0:00:05.1]}
59... Bb5+ {[%clk 0:00:07.7]} 60. Ke3 {[%clk 0:00:05.2]} 60... Be8 {[%clk
0:00:07.2]} 61. Bc2 {[%clk 0:00:05.4]} 61... Bf7 {[%clk 0:00:06.3]} 62. Bb3
{[%clk 0:00:05.3]} 62... Be8 {[%clk 0:00:06.6]} 63. Bc2 {[%clk 0:00:05.3]} 63...
Ke6 {[%clk 0:00:06.8]} 64. Bb3 {[%clk 0:00:03.8]} 64... g5 {[%clk 0:00:06.8]}
65. fxg5 {[%clk 0:00:02.7]} 65... fxg5 {[%clk 0:00:07.3]} 66. hxg5 {[%clk
0:00:03.2]} 66... Kf5 {[%clk 0:00:06.9]} 67. f4 {[%clk 0:00:02.6]} 67... Bf7
{[%clk 0:00:05.5]} 68. Kf3 {[%clk 0:00:02]} 68... h4 {[%clk 0:00:04.3]} 69. Bc2+
{[%clk 0:00:02.4]} 69... Ke6 {[%clk 0:00:04.6]} 70. Kg4 {[%clk 0:00:02.9]} 70...
b3 {[%clk 0:00:04.1]} 71. Bd3 {[%clk 0:00:01.6]} 71... Bg6 {[%clk 0:00:02.8]}
72. Kh3 {[%clk 0:00:02.5]} 72... Bxd3 {[%clk 0:00:03]} 73. Kxh4 {[%clk
0:00:03.2]} 73... Bg6 {[%clk 0:00:03.6]} 74. Kg4 {[%clk 0:00:02.9]} 74... Bf5+
{[%clk 0:00:04.1]} 75. Kg3 {[%clk 0:00:03.7]} 75... Kf7 {[%clk 0:00:04.8]} 76.
Kf3 {[%clk 0:00:04.5]} 76... Kg6 {[%clk 0:00:05.2]} 77. Kg3 {[%clk 0:00:05.3]}
77... Be4 {[%clk 0:00:05.3]} 78. Kg4 {[%clk 0:00:05.3]} 78... Bd3 {[%clk
0:00:05.7]} 79. Kg3 {[%clk 0:00:06.2]} 79... Kf5 {[%clk 0:00:06.2]} 80. Kh4
{[%clk 0:00:06]} 80... Be2 {[%clk 0:00:05.2]} 81. Kg3 {[%clk 0:00:05.6]} 81...
Bh5 {[%clk 0:00:04.5]} 82. Kh4 {[%clk 0:00:05.2]} 82... Bf7 {[%clk 0:00:04.5]}
83. Kg3 {[%clk 0:00:06.1]} 83... Bg6 {[%clk 0:00:04.8]} 84. Kh4 {[%clk 0:00:07]}
84... Kxf4 {[%clk 0:00:05]} 85. Kh3 {[%clk 0:00:07.3]} 85... Kxg5 {[%clk
0:00:05.4]} 86. Kg3 {[%clk 0:00:07.6]} 86... Bc2 {[%clk 0:00:05.7]} 87. Kf3
{[%clk 0:00:08.5]} 87... Kf5 {[%clk 0:00:06.3]} 88. Ke3 {[%clk 0:00:08.7]} 88...
Kg4 {[%clk 0:00:07]} 89. Kd2 {[%clk 0:00:09.4]} 89... Kf4 {[%clk 0:00:07.8]} 90.
Kc3 {[%clk 0:00:10.2]} 90... Ke3 {[%clk 0:00:08.2]} 91. Kb4 {[%clk 0:00:11.1]}
91... Kxd4 {[%clk 0:00:09]} 0-1

[Event "*** Titled Tuesday Blitz"]
[Site "Chess.com"]
[Date "2020.04.28"]
[Round "1"]
[White "farzadbfd"]
[Black "karwowskikacper"]
[Result "1-0"]
[WhiteElo "2679"]
[BlackElo "2344"]
[TimeControl "180+1"]
[EndTime "10:10:00 PDT"]
[Termination "farzadbfd won by resignation"]

1. e4 {[%clk 0:02:59.2]} 1... c5 {[%clk 0:03:00.2]} 2. Nc3 {[%clk 0:02:59.3]}
2... Nc6 {[%clk 0:03:00]} 3. g3 {[%clk 0:02:59.7]} 3... d6 {[%clk 0:03:00.6]} 4.
Bg2 {[%clk 0:03:00.1]} 4... g6 {[%clk 0:03:01.1]} 5. d3 {[%clk 0:03:00.7]} 5...
Bg7 {[%clk 0:03:01.9]} 6. Be3 {[%clk 0:03:01.4]} 6... Rb8 {[%clk 0:02:58.6]} 7.
Qd2 {[%clk 0:03:01.6]} 7... b5 {[%clk 0:02:58.8]} 8. Nge2 {[%clk 0:03:02.3]}
8... b4 {[%clk 0:02:57.9]} 9. Nd1 {[%clk 0:03:02.9]} 9... e6 {[%clk 0:02:55.2]}
10. O-O {[%clk 0:03:02.5]} 10... Nge7 {[%clk 0:02:52.1]} 11. a3 {[%clk
0:03:02.4]} 11... a5 {[%clk 0:02:50.6]} 12. Bh6 {[%clk 0:03:02.5]} 12... O-O
{[%clk 0:02:50.3]} 13. Bxg7 {[%clk 0:03:02.8]} 13... Kxg7 {[%clk 0:02:51.2]} 14.
axb4 {[%clk 0:03:03.2]} 14... axb4 {[%clk 0:02:51.5]} 15. d4 {[%clk 0:03:03.6]}
15... cxd4 {[%clk 0:02:43.7]} 16. Nxd4 {[%clk 0:03:04.5]} 16... Qb6 {[%clk
0:02:43.9]} 17. Nxc6 {[%clk 0:03:03.6]} 17... Nxc6 {[%clk 0:02:44.8]} 18. Ne3
{[%clk 0:02:56]} 18... Rd8 {[%clk 0:02:42.7]} 19. Ng4 {[%clk 0:02:55]} 19... Kh8
{[%clk 0:02:12.9]} 20. Rfd1 {[%clk 0:02:43.4]} 20... Qc7 {[%clk 0:02:03]} 21.
Nf6 {[%clk 0:02:16.8]} 21... Qe7 {[%clk 0:01:58.4]} 22. Qg5 {[%clk 0:02:17.3]}
22... Kg7 {[%clk 0:01:53.1]} 23. Nh5+ {[%clk 0:02:14.4]} 23... Kh8 {[%clk
0:01:50.9]} 24. Nf6 {[%clk 0:01:44.3]} 24... Kg7 {[%clk 0:01:49.8]} 25. Nh5+
{[%clk 0:01:44.9]} 25... Kh8 {[%clk 0:01:49.8]} 26. Qxe7 {[%clk 0:01:45.5]}
26... Nxe7 {[%clk 0:01:50.2]} 27. Nf6 {[%clk 0:01:45.1]} 27... Bb7 {[%clk
0:01:45.2]} 28. Ra7 {[%clk 0:01:42.4]} 28... Kg7 {[%clk 0:01:44.8]} 29. e5
{[%clk 0:01:37]} 29... Bxg2 {[%clk 0:01:40.8]} 30. Rxe7 {[%clk 0:01:36.8]} 30...
dxe5 {[%clk 0:01:36.5]} 31. Rxd8 {[%clk 0:00:47.6]} 31... Rxd8 {[%clk
0:01:37.4]} 32. Rd7 {[%clk 0:00:48]} 32... Rc8 {[%clk 0:01:20.9]} 33. Ng4 {[%clk
0:00:45.8]} 33... Bc6 {[%clk 0:01:10.6]} 34. Ra7 {[%clk 0:00:43.5]} 34... Bd5
{[%clk 0:01:04.8]} 35. Nxe5 {[%clk 0:00:43.3]} 35... Kf6 {[%clk 0:01:04.4]} 36.
f4 {[%clk 0:00:42.1]} 36... Kf5 {[%clk 0:01:04.4]} 37. Kf2 {[%clk 0:00:23.9]}
37... Ke4 {[%clk 0:01:01.4]} 38. c3 {[%clk 0:00:23.7]} 38... bxc3 {[%clk
0:00:46.4]} 39. Ra4+ {[%clk 0:00:23.7]} 39... Kf5 {[%clk 0:00:45.9]} 40. bxc3
{[%clk 0:00:20.6]} 40... Rxc3 {[%clk 0:00:45.4]} 41. Nxf7 {[%clk 0:00:20.5]}
41... Rc2+ {[%clk 0:00:45.3]} 42. Ke3 {[%clk 0:00:20.9]} 42... Rxh2 {[%clk
0:00:39.5]} 43. Ne5 {[%clk 0:00:21.1]} 43... g5 {[%clk 0:00:33.9]} 44. Ra7
{[%clk 0:00:21.3]} 44... gxf4+ {[%clk 0:00:32.9]} 45. gxf4 {[%clk 0:00:21.9]}
45... Rh3+ {[%clk 0:00:33.2]} 46. Kd4 {[%clk 0:00:22.5]} 46... Kxf4 {[%clk
0:00:30.6]} 47. Rf7+ {[%clk 0:00:23]} 47... Kg5 {[%clk 0:00:30.4]} 48. Rg7+
{[%clk 0:00:23.4]} 48... Kf6 {[%clk 0:00:28.2]} 49. Rf7+ {[%clk 0:00:23.2]}
49... Kg5 {[%clk 0:00:27.9]} 50. Rg7+ {[%clk 0:00:23.8]} 50... Kh6 {[%clk
0:00:21.8]} 51. Rg8 {[%clk 0:00:24.1]} 51... Rh4+ {[%clk 0:00:21.3]} 52. Kc5
{[%clk 0:00:24.4]} 52... Re4 {[%clk 0:00:20.5]} 53. Ng4+ {[%clk 0:00:22.3]}
53... Kh5 {[%clk 0:00:20.7]} 54. Nf6+ {[%clk 0:00:22.5]} 54... Kh4 {[%clk
0:00:21]} 55. Nxe4 {[%clk 0:00:22.5]} 55... Bxe4 {[%clk 0:00:21.9]} 56. Kd6
{[%clk 0:00:23]} 56... Bf5 {[%clk 0:00:22.1]} 57. Ke5 {[%clk 0:00:23.3]} 57...
h5 {[%clk 0:00:22.3]} 58. Kf4 {[%clk 0:00:24]} 58... Kh3 {[%clk 0:00:22.6]} 59.
Rh8 {[%clk 0:00:22.5]} 59... h4 {[%clk 0:00:22.8]} 60. Kg5 {[%clk 0:00:22.6]}
60... Kg3 {[%clk 0:00:23.2]} 61. Rxh4 {[%clk 0:00:23]} 61... Kf3 {[%clk
0:00:23.8]} 62. Kf6 {[%clk 0:00:22]} 62... Ke3 {[%clk 0:00:23.1]} 63. Ke5 {[%clk
0:00:22.3]} 63... Kf3 {[%clk 0:00:23.2]} 64. Rf4+ {[%clk 0:00:22.1]} 64... Kg3
{[%clk 0:00:23.3]} 65. Rf1 {[%clk 0:00:21.2]} 65... Kg2 {[%clk 0:00:23.3]} 66.
Rc1 {[%clk 0:00:20.4]} 66... Kf3 {[%clk 0:00:23.4]} 67. Rc3+ {[%clk 0:00:20.8]}
67... Kg4 {[%clk 0:00:23.4]} 68. Ra3 {[%clk 0:00:21.4]} 68... Kg5 {[%clk
0:00:19.6]} 69. Rg3+ {[%clk 0:00:21.7]} 69... Kh4 {[%clk 0:00:19.9]} 70. Rg1
{[%clk 0:00:21.6]} 70... Kh3 {[%clk 0:00:19.3]} 71. Kf4 {[%clk 0:00:22]} 71...
Kh2 {[%clk 0:00:19.6]} 72. Rg7 {[%clk 0:00:21.8]} 72... Kh3 {[%clk 0:00:19.4]}
73. Rg8 {[%clk 0:00:21.4]} 73... Kh2 {[%clk 0:00:18.8]} 74. Kf3 {[%clk 0:00:20]}
74... Bd3 {[%clk 0:00:14]} 75. Re8 {[%clk 0:00:14.8]} 75... Bc4 {[%clk
0:00:12.3]} 76. Re7 {[%clk 0:00:15]} 76... Bd5+ {[%clk 0:00:11.8]} 77. Kf2
{[%clk 0:00:14.7]} 77... Kh3 {[%clk 0:00:12]} 78. Rg7 {[%clk 0:00:15.3]} 78...
Kh4 {[%clk 0:00:12.2]} 79. Ke3 {[%clk 0:00:16]} 79... Kh5 {[%clk 0:00:12.1]} 80.
Kf4 {[%clk 0:00:16.6]} 80... Kh6 {[%clk 0:00:11.3]} 81. Rg1 {[%clk 0:00:17.3]}
81... Kh5 {[%clk 0:00:10.6]} 82. Ke5 {[%clk 0:00:12.5]} 82... Kh4 {[%clk
0:00:10.1]} 83. Kf4 {[%clk 0:00:12.7]} 83... Kh5 {[%clk 0:00:09]} 84. Rg5+
{[%clk 0:00:13.2]} 84... Kh6 {[%clk 0:00:08.7]} 85. Rg3 {[%clk 0:00:13.5]} 85...
Kh5 {[%clk 0:00:08.6]} 86. Rg1 {[%clk 0:00:13.2]} 86... Kh6 {[%clk 0:00:07.9]}
87. Rg5 {[%clk 0:00:13.9]} 87... Kh7 {[%clk 0:00:07.8]} 88. Ke5 {[%clk
0:00:13.3]} 88... Kh6 {[%clk 0:00:08.1]} 89. Kf6 {[%clk 0:00:14]} 89... Bc4
{[%clk 0:00:07.3]} 90. Rg4 {[%clk 0:00:13.7]} 90... Be2 {[%clk 0:00:05.6]} 91.
Rh4+ {[%clk 0:00:14.1]} 91... Bh5 {[%clk 0:00:05.8]} 92. Rh2 {[%clk 0:00:09.9]}
92... e5 {[%clk 0:00:05.5]} 93. Kf5 {[%clk 0:00:07.7]} 93... e4 {[%clk
0:00:05.5]} 94. Kxe4 {[%clk 0:00:08.1]} 94... Kg5 {[%clk 0:00:05.7]} 95. Ke5
{[%clk 0:00:08.7]} 95... Bg4 {[%clk 0:00:05.4]} 96. Rg2 {[%clk 0:00:09.1]} 96...
Kh4 {[%clk 0:00:05.8]} 97. Kf4 {[%clk 0:00:09.5]} 97... Bh3 {[%clk 0:00:06]} 98.
Rh2 {[%clk 0:00:09.8]} 98... Kh5 {[%clk 0:00:05.7]} 99. Rxh3+ {[%clk 0:00:10.4]}
99... Kg6 {[%clk 0:00:06.6]} 100. Rg3+ {[%clk 0:00:11]} 1-0